bitfinex/quotes_ETHUSD_20230903
["timestamp","ask_amount","ask_price","bid_price","bid_amount"]
[1693759092757,1.94579248,1631.5,1631.4,2.02792818]
[1693759094258,1.94579248,1631.5,1631.4,1.06508579]
[1693759094452,3.50579248,1631.5,1631.4,1.06508579]
[1693759095339,3.50579248,1631.5,1631.4,2.02792818]
[1693759095973,3.50579248,1631.5,1631.4,1.06508579]
[1693759096378,3.50579248,1631.5,1631.4,1.01508579]
[1693759096880,3.50579248,1631.5,1631.4,1.97792818]
[1693759098084,3.50579248,1631.5,1631.4,1.01508579]
[1693759098883,3.50579248,1631.5,1631.3,1.61720202]
[1693759099068,1.56,1631.4,1631.3,1.61720202]
[1693759099268,4.64185404,1631.4,1631.3,1.61720202]
[1693759099466,3.08185404,1631.4,1631.3,1.61720202]
[1693759099966,3.08185404,1631.4,1631.3,0.97629609]
[1693759101389,3.08185404,1631.4,1631.3,2.6250394]
[1693759102839,3.08185404,1631.4,1631.3,1.66219701]
[1693759103361,3.08185404,1631.4,1631.3,2.62314253]
[1693759105244,3.08185404,1631.4,1631.3,1.3430775]
[1693759105245,4.64185404,1631.4,1631.3,1.3430775]
[1693759106060,4.64185404,1631.4,1631.3,2.62314253]
[1693759106888,4.64185404,1631.4,1631.3,1.3430775]
[1693759107805,4.64185404,1631.4,1631.3,2.62314253]
[1693759111388,4.64185404,1631.4,1631.3,1.66219701]
[1693759112789,3.50575512,1631.4,1631.3,1.66219701]
[1693759113883,5.92885191,1631.4,1631.3,1.66219701]
[1693759114086,12.05855191,1631.4,1631.3,1.02277789]
[1693759114289,18.18825191,1631.4,1631.3,1.02277789]
[1693759114865,12.05855191,1631.4,1631.3,1.02277789]
[1693759115591,5.92885191,1631.4,1631.3,1.02277789]
[1693759115793,12.05855191,1631.4,1631.3,1.02277789]
[1693759116198,24.31795191,1631.4,1631.3,1.02277789]
[1693759116399,27.79795191,1631.4,1631.3,0.36867828]
[1693759116697,1.86460128,1631.1,1631.0,0.74080064]
[1693759116905,11.07728532,1631.1,1631.0,1.80621302]
[1693759117100,14.07728532,1631.1,1631.0,1.80621302]
[1693759117301,20.20811532,1631.1,1631.0,1.80621302]
[1693759117472,14.07728532,1631.1,1631.0,1.80621302]
[1693759117799,16.53492985,1631.1,1631.0,1.80621302]
[1693759117965,28.79658985,1631.1,1631.0,1.16541238]
[1693759118165,12.44409985,1631.1,1631.0,1.16541238]
[1693759118392,11.96409985,1631.1,1631.0,1.16541238]
[1693759118663,11.96409985,1631.1,1631.0,0.74080064]
[1693759118865,11.96409985,1631.1,1631.0,1.80621302]
[1693759119092,18.09492985,1631.1,1631.0,1.80621302]
[1693759119292,18.09492985,1631.1,1631.0,2.14033235]
[1693759120783,18.09492985,1631.1,1631.0,3.10130122]
[1693759120984,18.09492985,1631.1,1631.0,3.05130122]
[1693759121606,18.09492985,1631.1,1631.0,2.41050058]
[1693759122617,18.09492985,1631.1,1631.0,3.69056561]
[1693759122909,18.09492985,1631.1,1631.0,2.41050058]
[1693759123110,18.09492985,1631.1,1631.0,3.69056561]
[1693759123677,24.22575985,1631.1,1631.0,2.41102355]
[1693759123883,30.35658985,1631.1,1631.0,2.41102355]
[1693759125032,30.35658985,1631.1,1631.0,3.69108858]
[1693759125593,30.83658985,1631.1,1631.0,2.41102355]
[1693759126207,36.98765602,1631.1,1631.0,2.41102355]
[1693759126621,1.56,1631.0,1630.9,1.28006503]
[1693759126825,25.64301964,1631.0,1630.9,1.28006503]
[1693759128006,1.86460128,1630.9,1630.8,1.28006503]
[1693759128232,34.56692234,1630.9,1630.7,0.1]
[1693759128394,6.53854627,1630.8,1630.7,0.1]
[1693759128725,28.46836185,1630.8,1630.7,0.1]
[1693759128919,28.46836185,1630.8,1630.7,0.74082396]
[1693759129221,15.72431138,1630.8,1630.7,0.1]
[1693759129429,11.09854627,1630.8,1630.7,0.1]
[1693759129611,7.64185404,1630.8,1630.7,0.1]
[1693759129818,7.00252142,1630.8,1630.7,0.1]
[1693759132729,5.86594686,1630.8,1630.7,0.05]
[1693759134336,5.86594686,1630.8,1630.7,0.37383664]
[1693759134636,5.86594686,1630.8,1630.7,1.01449938]
[1693759134808,5.86594686,1630.8,1630.7,0.37383664]
[1693759135526,5.86594686,1630.8,1630.7,1.0144197]
[1693759136111,8.09961167,1630.8,1630.7,1.0144197]
[1693759136322,14.23156167,1630.8,1630.7,1.0144197]
[1693759137307,20.36351167,1630.8,1630.7,1.0144197]
[1693759137903,20.36351167,1630.8,1630.7,0.37383664]
[1693759138628,14.23156167,1630.8,1630.7,0.37383664]
[1693759143709,1.86460128,1630.7,1630.6,0.1]
[1693759143910,1.86460128,1630.5,1630.4,3.19970548]
[1693759144116,1.86460128,1630.5,1630.3,0.1]
[1693759144117,12.63953532,1630.5,1630.3,0.1]
[1693759144314,12.63953532,1630.5,1630.3,0.7405759]
[1693759144315,3.08185404,1630.4,1630.3,0.7405759]
[1693759144613,3.08185404,1630.4,1630.3,0.1]
[1693759144821,10.77531404,1630.4,1630.3,0.1]
[1693759145020,13.02336357,1630.4,1630.3,0.1]
[1693759145307,1.86460128,1630.1,1630.0,32.88899815]
[1693759145516,1.86460128,1630.1,1630.0,26.78699815]
[1693759145517,4.94645532,1630.1,1630.0,26.78699815]
[1693759145738,17.21563532,1630.1,1630.0,26.78699815]
[1693759145922,21.77563532,1630.1,1630.0,26.78699815]
[1693759146248,4.64185404,1630.1,1630.0,26.78699815]
[1693759146558,1.86460128,1629.0,1628.1,4.5894262]
[1693759146857,1.56,1630.0,1628.0,4.772056]
[1693759146858,6.13695,1629.5,1629.3,1.60163153]
[1693759147058,6.13695,1629.5,1628.5,1.06624628]
[1693759147059,1.93961885,1629.0,1628.4,0.64114996]
[1693759147351,1.93961885,1629.0,1627.8,3.84415418]
[1693759147352,2.0,1628.6,1627.8,3.84415418]
[1693759147516,2.0,1628.6,1626.3,48.29]
[1693759147517,1.56,1628.0,1627.3,31.9754656]
[1693759147715,1.56,1628.5,1627.8,2.5]
[1693759147916,6.13886,1629.0,1628.2,2.5]
[1693759148118,1.56,1628.9,1628.2,2.5]
[1693759148347,1.56,1628.9,1628.5,2.5]
[1693759148550,1.82236953,1629.3,1628.7,2.5]
[1693759148855,1.592149,1629.7,1629.0,2.5]
[1693759148856,0.6368596,1629.7,1629.0,2.5]
[1693759149063,6.63543,1629.9,1629.0,2.5]
[1693759149221,6.19185987,1629.8,1629.2,2.5]
[1693759149423,0.5,1630.0,1629.5,2.5]
[1693759149623,6.19081705,1629.9,1629.5,2.5]
[1693759150048,2.06,1630.1,1629.3,1.56]
[1693759150355,2.06,1630.1,1629.2,4.82281487]
[1693759150356,6.19071649,1630.0,1629.6,2.5]
[1693759150536,0.5,1630.1,1629.6,2.5]
[1693759150736,0.5,1630.1,1629.6,2.906]
[1693759151272,0.5,1630.1,1629.6,2.5]
[1693759151427,0.5,1630.1,1629.7,0.34813701]
[1693759151756,1.56,1630.2,1629.5,1.56]
[1693759151957,0.5,1630.4,1629.8,1.56]
[1693759152185,1.56,1630.5,1629.8,1.56]
[1693759152390,0.819277,1630.5,1629.9,4.06]
[1693759152548,0.5,1630.4,1629.9,4.06]
[1693759152728,0.5,1630.4,1629.9,1.56]
[1693759152928,0.45,1630.6,1629.8,3.137]
[1693759153224,12.21884771,1630.9,1629.9,2.55]
[1693759153225,4.22045847,1630.9,1629.9,2.55]
[1693759153424,0.45,1630.6,1630.1,2.55]
[1693759153869,4.22045847,1630.9,1630.1,2.55]
[1693759154054,0.42204585,1630.8,1630.1,2.55]
[1693759154253,0.45,1630.6,1630.1,2.55]
[1693759155459,0.45,1630.9,1630.1,2.55]
[1693759155633,0.45,1630.7,1630.1,2.55]
[1693759155833,0.45,1630.7,1630.1,3.1187]
[1693759156426,2.7137,1631.0,1630.1,3.1187]
[1693759156629,2.7137,1631.0,1630.1,30.41]
[1693759156826,2.7137,1631.0,1629.8,32.96]
[1693759156827,3.587,1630.3,1629.8,32.96]
[1693759157262,3.587,1630.3,1629.8,2.55]
[1693759157444,0.45,1630.3,1629.6,30.41]
[1693759157639,0.45,1630.3,1629.8,2.55]
[1693759157847,1.02137,1630.3,1629.8,2.55]
[1693759158044,1.02137,1630.3,1629.6,30.41]
[1693759158246,3.137,1630.2,1629.7,2.55]
[1693759158857,0.45,1629.9,1629.6,30.41]
[1693759159062,3.08185404,1629.8,1629.6,30.41]
[1693759159278,3.08185404,1629.8,1629.3,32.96]
[1693759159279,3.43503944,1629.8,1629.3,32.96]
[1693759161201,0.45,1629.9,1629.3,33.57253707]
[1693759161393,5.2612,1630.1,1629.5,2.55]
[1693759161394,5.7112,1630.1,1629.5,2.55]
[1693759161569,3.08185404,1630.0,1629.5,2.55]
[1693759163580,5.7112,1630.1,1629.4,0.39210129]
[1693759163581,0.45,1629.6,1629.4,0.39210129]
[1693759163785,3.08185404,1629.5,1629.4,0.39210129]
[1693759164088,3.08185404,1629.5,1629.3,30.41]
[1693759164290,3.08185404,1629.5,1629.1,2.55]
[1693759165168,0.45,1629.1,1628.6,30.41]
[1693759165377,5.0,1629.4,1628.6,30.41]
[1693759165378,6.21885404,1629.0,1628.6,30.41]
[1693759165583,0.6218854,1628.9,1628.6,30.41]
[1693759165891,3.08185404,1628.9,1628.5,2.55]
[1693759166390,3.0,1629.2,1628.6,0.61253707]
[1693759166591,3.08185404,1629.1,1628.6,0.61253707]
[1693759167055,3.08185404,1629.1,1628.8,2.55]
[1693759167260,3.08185404,1629.1,1628.8,3.16253707]
[1693759167992,3.39003944,1629.1,1628.8,2.55]
[1693759168198,3.39003944,1629.1,1628.6,2.55]
[1693759168382,3.84003944,1629.1,1628.6,2.55]
[1693759169067,5.61203944,1629.1,1628.6,2.55]
[1693759169272,5.61203944,1629.1,1628.7,0.61253707]
[1693759169699,0.56120394,1629.0,1628.7,0.61253707]
[1693759170024,3.08185404,1628.9,1628.7,0.61253707]
[1693759171263,3.53185404,1628.9,1628.4,2.65]
[1693759171468,6.66885404,1628.9,1628.4,2.65]
[1693759171996,6.66885404,1628.9,1628.4,0.1]
[1693759172188,0.6668854,1628.8,1628.4,0.1]
[1693759172368,3.08185404,1628.7,1628.4,2.5]
[1693759172568,3.08185404,1628.7,1628.3,31.02253707]
[1693759172770,3.08185404,1628.7,1628.3,0.61253707]
[1693759172971,3.08185404,1628.7,1628.4,2.5]
[1693759173171,3.08185404,1628.7,1628.4,3.11253707]
[1693759174099,0.6668854,1628.8,1628.4,3.11253707]
[1693759174268,3.08185404,1628.8,1628.5,0.61253707]
[1693759174799,0.56120394,1629.0,1628.6,2.5]
[1693759175000,3.08185404,1628.9,1628.7,0.61253707]
[1693759175304,3.08185404,1629.0,1628.7,0.61253707]
[1693759175497,2.6858,1629.3,1628.9,2.5]
[1693759175805,5.76765404,1629.3,1628.9,3.11253707]
[1693759176103,3.08185404,1629.2,1628.9,3.11253707]
[1693759176313,3.65861944,1629.2,1628.9,3.11253707]
[1693759176814,3.65861944,1629.2,1629.0,0.35762235]
[1693759178278,3.65861944,1629.2,1629.0,0.15762235]
[1693759178479,3.65861944,1629.2,1629.0,0.35671377]
[1693759178951,4.15861944,1629.2,1629.0,0.35671377]
[1693759179146,9.63471598,1629.1,1629.0,0.35671377]
[1693759179502,9.63471598,1629.1,1628.4,30.41]
[1693759179703,11.81231598,1629.1,1628.6,2.5]
[1693759180286,6.21885404,1628.9,1628.6,2.5]
[1693759180713,6.21885404,1628.9,1628.4,30.41]
[1693759180935,0.6218854,1628.8,1628.6,2.5]
[1693759181138,3.08185404,1628.7,1628.6,2.5]
[1693759182235,3.08185404,1628.7,1628.5,2.5]
[1693759182451,6.71885404,1628.7,1628.2,30.41]
[1693759182591,0.6718854,1628.6,1628.1,2.5]
[1693759182791,3.137,1628.9,1628.5,2.5]
[1693759183039,6.04528393,1629.5,1628.5,3.11253707]
[1693759183040,3.91586194,1629.1,1628.5,3.11253707]
[1693759183237,5.36145404,1629.0,1628.5,3.11253707]
[1693759183435,3.08185404,1629.0,1628.7,2.5]
[1693759184352,3.08185404,1629.0,1628.7,2.45]
[1693759184511,0.55,1629.4,1628.7,2.45]
[1693759184847,3.08185404,1629.3,1628.7,3.06253707]
[1693759186223,3.08185404,1629.3,1628.8,0.30803666]
[1693759187221,5.30705404,1629.3,1628.8,0.30803666]
[1693759189574,0.48449097,1629.7,1629.1,2.45]
[1693759189776,3.08185404,1629.6,1629.1,2.45]
[1693759190065,3.08185404,1629.6,1629.1,3.06253707]
[1693759190269,2.13112335,1630.2,1629.3,2.45]
[1693759190491,2.7198,1629.9,1629.3,3.06253707]
[1693759190632,3.08185404,1629.8,1629.3,3.06253707]
[1693759190833,3.66201944,1629.8,1629.3,3.06253707]
[1693759191650,3.66201944,1629.8,1629.4,0.30611546]
[1693759192282,3.66201944,1629.8,1629.3,2.45]
[1693759195439,9.79785944,1629.8,1629.3,2.45]
[1693759196158,3.66201944,1629.8,1629.3,2.45]
[1693759196371,0.36620194,1629.7,1629.3,2.45]
[1693759196574,3.08185404,1629.6,1629.3,2.45]
[1693759200649,3.08185404,1629.6,1629.1,2.45]
[1693759200888,3.08185404,1629.6,1629.3,2.45]
[1693759202266,3.08185404,1629.6,1629.1,2.45]
[1693759202476,2.5184854,1629.5,1629.1,2.45]
[1693759202677,3.08185404,1629.4,1629.1,2.45]
[1693759205803,0.3081854,1629.5,1629.1,2.45]
[1693759205967,3.08185404,1629.5,1629.1,2.45]
[1693759206509,3.08185404,1629.5,1629.2,0.3001026]
[1693759207087,3.08185404,1629.5,1629.1,2.45]
[1693759208115,0.63807412,1629.7,1629.4,2.45]
[1693759208283,2.1753507,1629.8,1629.4,2.45]
[1693759208489,3.71992816,1629.8,1629.4,2.45]
[1693759208699,3.08185404,1629.8,1629.4,2.45]
[1693759209408,0.63807412,1629.9,1629.4,2.45]
[1693759209609,3.08185404,1629.9,1629.4,2.45]
[1693759209910,1.12545059,1630.0,1629.7,2.45]
[1693759210071,3.52000022,1630.0,1629.7,2.45]
[1693759211697,2.73488429,1630.2,1629.9,2.45]
[1693759211698,0.63807412,1630.2,1629.9,2.45]
[1693759211878,3.08185404,1630.1,1629.9,2.45]
[1693759212278,3.8131853,1630.3,1629.9,2.45]
[1693759212483,3.08185404,1630.2,1629.9,2.45]
[1693759212925,0.63807412,1630.1,1629.8,0.29726122]
[1693759213225,3.08185404,1630.0,1629.8,0.29726122]
[1693759215090,3.08185404,1630.0,1629.8,2.74726122]
[1693759215786,3.71992816,1630.0,1629.8,2.74726122]
[1693759215983,3.08185404,1630.0,1629.8,2.74726122]
[1693759216183,0.3081854,1629.9,1629.8,2.74726122]
[1693759216423,3.39003944,1629.9,1629.8,2.74726122]
[1693759216991,3.38803944,1629.9,1629.8,2.74726122]
[1693759218711,3.08185404,1629.9,1629.8,2.74726122]
[1693759222707,2.92207412,1630.1,1629.8,2.74726122]
[1693759222872,3.08185404,1630.1,1629.8,2.74726122]
[1693759224819,0.63807412,1630.3,1629.8,2.74726122]
[1693759225173,3.71992816,1630.3,1629.8,2.74726122]
[1693759225347,3.08185404,1630.3,1629.8,2.74726122]
[1693759226218,3.58807412,1630.4,1629.8,3.35979829]
[1693759226560,6.66992816,1630.4,1629.9,0.33597983]
[1693759226866,6.66992816,1630.4,1630.1,2.45]
[1693759226867,3.71992816,1630.4,1630.1,2.45]
[1693759227216,3.61992816,1630.4,1630.1,2.45]
[1693759229770,2.98185404,1630.4,1630.1,2.45]
[1693759230558,9.11531404,1630.4,1630.0,0.29109414]
[1693759230872,9.11531404,1630.4,1629.8,32.86]
[1693759230873,8.18145956,1630.3,1629.8,32.86]
[1693759231045,12.90679412,1630.2,1629.8,32.86]
[1693759231241,3.08185404,1630.1,1629.8,32.86]
[1693759231829,9.21644404,1630.1,1629.8,32.86]
[1693759232128,9.85451816,1630.1,1629.8,2.45]
[1693759232369,3.71992816,1630.1,1629.8,2.45]
[1693759232583,3.08185404,1630.1,1629.8,2.45]
[1693759232776,3.08185404,1630.1,1629.9,0.27486386]
[1693759232777,3.71992816,1630.1,1629.9,0.27486386]
[1693759232981,3.71992816,1630.1,1629.8,2.45]
[1693759236035,3.08185404,1629.9,1629.7,3.0]
[1693759236335,7.67703934,1629.8,1629.7,3.0]
[1693759236540,26.08536915,1629.8,1629.7,3.0]
[1693759236771,0.55,1629.7,1629.2,2.45]
[1693759237070,3.137,1629.5,1629.2,2.45]
[1693759237249,3.08185404,1629.4,1629.3,0.25468861]
[1693759243072,15.66447944,1629.4,1629.3,0.25468861]
[1693759243272,25.99019726,1629.4,1629.3,0.25468861]
[1693759243471,26.94794399,1629.4,1628.7,1.8302]
[1693759243765,6.137,1629.3,1628.8,2.45]
[1693759243963,3.08185404,1629.2,1628.8,2.70527386]
[1693759244163,3.08185404,1629.2,1628.8,3.15882125]
[1693759244771,3.08185404,1629.2,1628.8,0.70882125]
[1693759244972,3.08185404,1629.2,1628.8,0.25527386]
[1693759245176,3.08185404,1629.2,1628.8,2.70527386]
[1693759246699,3.07604514,1629.2,1628.8,2.70527386]
[1693759247399,9.21405514,1629.2,1628.8,2.70527386]
[1693759248263,9.21405514,1629.2,1628.8,0.25527386]
[1693759248264,6.21885404,1629.1,1628.8,0.25527386]
[1693759248464,13.27884955,1629.1,1628.8,0.25527386]
[1693759249574,3.08185404,1629.1,1628.8,0.25527386]
[1693759250878,0.55,1629.2,1628.8,0.25527386]
[1693759251204,3.08185404,1629.2,1628.8,0.25527386]
[1693759251776,5.6693,1629.3,1628.8,0.25527386]
[1693759251777,3.08185404,1629.1,1628.8,0.25527386]
[1693759252204,9.22022404,1629.1,1628.8,0.25527386]
[1693759252402,10.75604544,1629.1,1628.8,0.25527386]
[1693759252607,10.75604544,1629.1,1628.7,2.45]
[1693759252814,13.07474544,1629.1,1628.7,2.45]
[1693759253016,6.93637544,1629.1,1628.8,0.21530962]
[1693759253312,5.40055404,1629.1,1628.8,0.21530962]
[1693759253517,5.35055404,1629.1,1628.8,0.21530962]
[1693759254824,26.90271404,1629.1,1628.8,0.21530962]
[1693759255020,27.45271404,1629.1,1628.6,30.41]
[1693759255319,3.137,1628.9,1628.6,30.41]
[1693759255613,3.08185404,1628.8,1628.7,0.20334907]
[1693759256208,3.08185404,1628.8,1628.4,2.2857]
[1693759256407,3.08185404,1628.8,1628.4,5.80027]
[1693759257023,3.08185404,1628.8,1628.4,2.2857]
[1693759257195,9.22137404,1628.8,1628.4,2.2857]
[1693759257396,0.55,1628.7,1628.3,30.41]
[1693759257597,3.137,1628.5,1628.1,0.1]
[1693759257823,6.14101,1628.4,1628.1,2.55]
[1693759258129,3.08185404,1628.3,1628.1,2.55]
[1693759258497,3.08185404,1628.3,1628.1,0.1]
[1693759258697,3.08185404,1628.3,1628.1,2.55]
[1693759259221,3.08185404,1628.3,1628.1,0.1]
[1693759259390,3.08185404,1628.3,1628.1,2.55]
[1693759259592,2.3267,1628.5,1628.1,3.04875]
[1693759259798,6.687,1628.7,1628.1,3.04875]
[1693759259799,3.08185404,1628.4,1628.1,3.04875]
[1693759260209,5.1246,1628.7,1628.1,3.04875]
[1693759260414,0.55,1628.9,1628.4,2.45]
[1693759260606,3.08185404,1628.9,1628.4,3.06253707]
[1693759260912,6.68793,1629.3,1628.7,2.45]
[1693759260913,0.55,1629.3,1628.7,2.45]
[1693759261095,3.08185404,1629.2,1628.7,2.45]
[1693759261295,9.21987404,1629.2,1628.7,2.45]
[1693759261701,0.55,1629.1,1628.5,2.3158]
[1693759262038,9.22058404,1629.0,1628.6,2.45]
[1693759262400,12.82546,1629.1,1628.6,2.45]
[1693759262401,3.0,1629.1,1628.6,2.45]
[1693759262600,6.08185404,1629.1,1628.6,2.45]
[1693759263008,7.88457727,1629.3,1628.6,2.45]
[1693759263009,3.49732373,1629.3,1628.6,2.45]
[1693759263202,3.08185404,1629.3,1628.8,2.45]
[1693759263443,2.78171309,1629.5,1628.9,0.61253707]
[1693759263652,3.08185404,1629.4,1629.0,2.45]
[1693759265239,2.78712597,1629.7,1629.0,2.45]
[1693759265439,6.63185404,1629.6,1629.0,2.45]
[1693759265607,6.63185404,1629.6,1629.0,4.7345]
[1693759266323,6.08185404,1629.6,1629.0,4.7345]
[1693759266666,6.63185404,1629.6,1629.1,0.18092839]
[1693759266939,6.08185404,1629.6,1629.1,0.18092839]
[1693759267258,6.08185404,1629.6,1629.1,0.67247123]
[1693759269754,14.49828404,1629.6,1629.1,0.67247123]
[1693759270452,20.63481404,1629.6,1629.1,0.18092839]
[1693759270624,26.77134404,1629.6,1629.1,0.18092839]
[1693759270822,20.63481404,1629.6,1629.1,0.18092839]
[1693759272024,3.137,1629.5,1629.1,0.18092839]
[1693759272259,3.08185404,1629.4,1629.1,0.18092839]
[1693759272953,5.28185404,1629.4,1629.1,0.18092839]
[1693759273120,7.03744244,1629.4,1629.1,0.18092839]
[1693759273316,13.17476244,1629.4,1629.1,0.18092839]
[1693759275771,5.28185404,1629.4,1629.1,0.18092839]
[1693759277343,11.41910404,1629.4,1629.1,0.18092839]
[1693759279640,5.28185404,1629.4,1629.1,0.18092839]
[1693759285164,3.08185404,1629.4,1629.1,0.18092839]
[1693759288697,3.7198543,1629.4,1629.1,0.18092839]
[1693759289392,0.63800026,1629.4,1629.1,0.18092839]
[1693759289694,0.63913679,1629.4,1629.1,0.67247123]
[1693759296394,0.63909409,1629.4,1629.1,0.67247123]
[1693759299009,1.59773522,1629.4,1629.1,0.67247123]
[1693759299412,0.63909409,1629.4,1629.1,0.67247123]
[1693759299717,1.59773522,1629.4,1629.1,0.67247123]
[1693759302914,0.63909409,1629.3,1629.1,0.67247123]
[1693759303115,0.63909409,1629.4,1629.1,0.67247123]
[1693759304314,3.72094813,1629.4,1629.1,0.18092839]
[1693759304718,0.63909409,1629.2,1629.1,0.18092839]
[1693759305891,1.59773522,1629.3,1629.1,0.18092839]
[1693759307023,1.59773522,1629.3,1629.0,4.66542839]
[1693759307204,1.59773522,1629.3,1629.2,0.15701567]
[1693759307395,0.63909409,1629.3,1629.2,0.15701567]
[1693759307717,0.63909409,1629.3,1629.0,4.66542839]
[1693759308026,1.59773522,1629.3,1629.1,0.46654284]
[1693759308186,0.63909409,1629.3,1629.1,0.46654284]
[1693759308386,1.59773522,1629.3,1629.1,0.46654284]
[1693759309391,0.63909409,1629.3,1629.1,0.46654284]
[1693759309879,0.63909409,1629.3,1628.6,3.09946489]
[1693759309880,5.20285404,1629.0,1628.6,3.09946489]
[1693759310186,5.20285404,1629.0,1628.3,4.26982253]
[1693759310187,4.36232118,1628.7,1628.3,2.45]
[1693759310406,3.72150467,1628.7,1628.3,2.45]
[1693759311026,6.19416161,1628.6,1628.3,2.45]
[1693759312523,3.08185404,1628.4,1627.8,3.17017001]
[1693759312720,6.19525808,1628.3,1628.0,2.45]
[1693759312923,2.87842783,1628.5,1628.2,2.45]
[1693759313232,6.19521466,1628.4,1628.2,2.45]
[1693759313899,6.19521466,1628.4,1628.0,2.45]
[1693759314624,6.19521466,1628.4,1628.2,2.45]
[1693759315718,2.77125063,1628.9,1628.5,2.45]
[1693759315920,6.19389255,1628.8,1628.7,2.45]
[1693759317031,6.19389255,1629.0,1628.7,2.45]
[1693759317399,9.91539722,1629.0,1628.7,2.45]
[1693759317604,6.19389255,1628.9,1628.7,2.45]
[1693759318429,3.08185404,1628.8,1628.4,5.2377]
[1693759318730,6.19389255,1628.7,1628.4,5.2377]
[1693759318921,9.27574659,1628.7,1628.4,5.2377]
[1693759319228,6.19389255,1628.6,1628.4,5.2377]
[1693759319401,6.19389255,1628.6,1628.4,5.76147]
[1693759319606,3.08185404,1628.7,1628.4,5.76147]
[1693759320455,9.27594957,1628.6,1628.4,2.45]
[1693759320750,3.08185404,1628.6,1628.4,2.45]
[1693759323347,6.19455133,1628.5,1628.2,2.5286]
[1693759323553,3.08185404,1628.4,1628.2,2.5286]
[1693759324755,3.08185404,1628.4,1627.8,32.96]
[1693759324918,3.08185404,1628.4,1627.9,5.8679]
[1693759325117,3.08185404,1628.4,1628.0,2.45]
[1693759325427,3.08185404,1628.4,1627.9,2.5719]
[1693759326052,3.08185404,1628.4,1628.0,2.45]
[1693759327051,8.39755642,1628.3,1627.9,2.5719]
[1693759327221,24.60304032,1628.2,1627.8,0.1]
[1693759327426,18.40724968,1628.2,1627.8,0.1]
[1693759327626,6.19630665,1628.1,1627.8,0.1]
[1693759327937,3.08185404,1628.0,1627.8,0.1]
[1693759328265,3.08185404,1627.9,1627.8,0.1]
[1693759328587,3.08185404,1627.9,1627.8,0.05]
[1693759328588,28.5786048,1627.9,1627.8,0.05]
[1693759328860,28.63277704,1627.9,1627.8,0.05]
[1693759329061,16.2928448,1627.9,1627.8,0.05]
[1693759329377,34.77580309,1627.9,1627.8,0.05]
[1693759329863,34.77570505,1627.9,1627.8,0.05]
[1693759333464,20.28794505,1627.9,1627.8,0.05]
[1693759333666,6.19710236,1627.9,1627.8,0.05]
[1693759335379,2.1012,1628.6,1628.0,2.45]
[1693759335545,2.202,1628.7,1628.2,2.45]
[1693759335733,3.08185404,1628.7,1628.2,2.45]
[1693759336936,3.08185404,1628.7,1628.5,2.45]
[1693759337741,3.08185404,1628.7,1628.2,2.45]
[1693759337954,3.08185404,1628.7,1628.5,2.45]
[1693759339071,3.08185404,1628.7,1628.1,35.5074]
[1693759339072,3.08185404,1628.6,1628.1,35.5074]
[1693759339233,5.28385404,1628.6,1628.1,35.5074]
[1693759339433,2.202,1628.3,1628.1,30.41]
[1693759339679,5.28385404,1628.3,1628.1,30.41]
[1693759339895,5.28385404,1628.3,1627.9,2.5772]
[1693759340055,3.08185404,1628.3,1627.9,2.5772]
[1693759340255,3.08185404,1628.3,1627.9,5.0272]
[1693759340459,3.08185404,1628.3,1627.9,3.08492]
[1693759341753,3.08185404,1628.3,1628.0,2.45]
[1693759343354,3.08185404,1628.3,1627.9,3.08492]
[1693759343735,3.08185404,1628.3,1628.1,2.45]
[1693759344176,3.08185404,1628.3,1628.1,2.35]
[1693759344596,3.08185404,1628.3,1627.9,3.08492]
[1693759344777,3.08185404,1628.3,1628.0,0.308492]
[1693759345176,3.08185404,1628.3,1628.1,2.35]
[1693759345865,6.1601854,1628.7,1628.1,2.35]
[1693759346199,3.08185404,1628.6,1628.1,2.35]
[1693759347540,3.3081854,1628.7,1628.1,2.35]
[1693759347768,6.08185404,1628.7,1628.1,2.35]
[1693759350541,6.08185404,1628.7,1628.3,2.35]
[1693759352244,3.08185404,1628.7,1628.3,2.35]
[1693759352477,2.70540913,1628.9,1628.5,2.35]
[1693759352681,3.08185404,1628.8,1628.5,2.35]
[1693759354788,5.74303231,1629.0,1628.5,2.35]
[1693759354991,6.08185404,1628.9,1628.5,2.35]
[1693759355481,8.28385404,1628.9,1628.5,2.35]
[1693759361380,3.0,1628.9,1628.5,2.35]
[1693759361888,5.2606,1629.0,1628.5,2.35]
[1693759362069,8.34245404,1629.0,1628.5,2.35]
[1693759362387,9.46043375,1629.0,1628.5,2.35]
[1693759364670,10.09577683,1629.0,1628.5,2.35]
[1693759366375,0.63534308,1629.1,1628.5,6.436]
[1693759366577,2.74604308,1629.2,1628.9,2.35]
[1693759366776,5.82789712,1629.2,1628.9,2.35]
[1693759368104,5.82789712,1629.2,1628.7,2.35]
[1693759368398,5.82789712,1629.2,1628.9,2.35]
[1693759368587,0.63534308,1629.2,1628.9,2.35]
[1693759368776,3.71719712,1629.2,1628.9,2.35]
[1693759369399,4.21781453,1629.2,1628.9,2.35]
[1693759370779,3.58247145,1629.2,1628.9,2.35]
[1693759372469,0.50061741,1629.2,1629.1,2.35]
[1693759372672,2.1196,1629.3,1629.1,2.35]
[1693759372973,0.63534308,1629.4,1629.1,2.35]
[1693759373189,3.71719712,1629.4,1629.1,2.35]
[1693759374215,4.22039771,1629.4,1629.1,2.35]
[1693759375616,3.08185404,1629.3,1629.1,2.35]
[1693759375817,6.87221174,1629.3,1629.1,2.35]
[1693759375984,6.87221174,1629.3,1628.8,2.6157]
[1693759376189,3.7903577,1629.2,1628.8,2.6157]
[1693759376405,5.28385404,1629.1,1628.8,2.6157]
[1693759376716,5.91919712,1629.1,1628.8,2.6157]
[1693759377098,5.28385404,1629.1,1628.8,2.6157]
[1693759377493,5.91919712,1629.1,1628.8,2.6157]
[1693759378087,3.71719712,1629.1,1628.8,3.11227]
[1693759378327,0.63534308,1629.2,1628.9,2.35]
[1693759378627,3.71719712,1629.2,1628.9,2.35]
[1693759380921,0.63534308,1629.2,1628.9,2.35]